[Event "*** Titled Tuesday Blitz"]
[Site "Chess.com"]
[Date "2020.01.07"]
[Round "3"]
[White "filali-marouan"]
[Black "ShahMatKanal"]
[Result "0-1"]
[WhiteElo "2285"]
[BlackElo "2552"]
[TimeControl "180+2"]
[EndTime "13:46:10 PST"]
[Termination "ShahMatKanal won by resignation"]

1. e4 {[%clk 0:03:01.9]} 1... c6 {[%clk 0:03:00.9]} 2. d4 {[%clk 0:03:02.1]}
2... d5 {[%clk 0:03:01.9]} 3. exd5 {[%clk 0:03:04]} 3... cxd5 {[%clk 0:03:03.8]}
4. Nf3 {[%clk 0:03:05.2]} 4... Nc6 {[%clk 0:03:02.6]} 5. Be2 {[%clk 0:03:04.6]}
5... Bg4 {[%clk 0:03:02.5]} 6. O-O {[%clk 0:03:05.9]} 6... e6 {[%clk 0:03:03.6]}
7. c3 {[%clk 0:03:04.8]} 7... Bd6 {[%clk 0:03:04.7]} 8. Nbd2 {[%clk 0:03:02.5]}
8... Nge7 {[%clk 0:03:05.1]} 9. b4 {[%clk 0:03:02.9]} 9... O-O {[%clk
0:03:03.2]} 10. Nb3 {[%clk 0:03:03.9]} 10... Rc8 {[%clk 0:02:59.6]} 11. Bd2
{[%clk 0:03:03.6]} 11... Qc7 {[%clk 0:02:57.9]} 12. h3 {[%clk 0:03:02.3]} 12...
Bh5 {[%clk 0:02:57.9]} 13. a4 {[%clk 0:03:03.7]} 13... Bf4 {[%clk 0:02:53]} 14.
Nc5 {[%clk 0:03:03.5]} 14... Bxd2 {[%clk 0:02:51.4]} 15. Qxd2 {[%clk 0:03:05.4]}
15... b6 {[%clk 0:02:46.3]} 16. Nd3 {[%clk 0:03:06.2]} 16... Bg6 {[%clk
0:02:42.5]} 17. Rfc1 {[%clk 0:03:02.9]} 17... Nf5 {[%clk 0:02:33.7]} 18. Nde5
{[%clk 0:02:59.7]} 18... Nxe5 {[%clk 0:02:23]} 19. Nxe5 {[%clk 0:03:01.6]} 19...
Nd6 {[%clk 0:02:23.9]} 20. a5 {[%clk 0:02:52.9]} 20... Ne4 {[%clk 0:02:19]} 21.
Qe3 {[%clk 0:02:51.9]} 21... bxa5 {[%clk 0:02:11.1]} 22. bxa5 {[%clk 0:02:40.7]}
22... Nd6 {[%clk 0:02:03.7]} 23. c4 {[%clk 0:02:38.4]} 23... dxc4 {[%clk
0:02:02]} 24. Bxc4 {[%clk 0:02:35.6]} 24... Nxc4 {[%clk 0:02:01.6]} 25. Rxc4
{[%clk 0:02:37.5]} 25... Qd6 {[%clk 0:01:59.8]} 26. Rac1 {[%clk 0:02:32.7]}
26... Rxc4 {[%clk 0:01:55.1]} 27. Rxc4 {[%clk 0:02:34.6]} 27... Qd5 {[%clk
0:01:47]} 28. Rc5 {[%clk 0:02:31.5]} 28... Qa2 {[%clk 0:01:42.1]} 29. Nc6 {[%clk
0:02:28.7]} 29... a6 {[%clk 0:01:32.9]} 30. Kh2 {[%clk 0:02:19.1]} 30... Qb2
{[%clk 0:01:23.5]} 31. h4 {[%clk 0:02:17.1]} 31... Qb7 {[%clk 0:01:06]} 32. h5
{[%clk 0:02:15.4]} 32... Bxh5 {[%clk 0:01:01.3]} 33. Ne5 {[%clk 0:01:30.5]}
33... Bg6 {[%clk 0:00:54.4]} 34. Qc3 {[%clk 0:01:29.7]} 34... Qe7 {[%clk
0:00:51]} 35. g3 {[%clk 0:01:27.9]} 35... Qf6 {[%clk 0:00:48]} 36. Qe3 {[%clk
0:01:22.4]} 36... Qd8 {[%clk 0:00:44.6]} 37. Rc6 {[%clk 0:01:21.5]} 37... Qxa5
{[%clk 0:00:44.1]} 38. Qc1 {[%clk 0:01:11.6]} 38... Qa2 {[%clk 0:00:41.7]} 39.
Qe3 {[%clk 0:00:55.2]} 39... a5 {[%clk 0:00:38.8]} 40. Ra6 {[%clk 0:00:56.5]}
40... a4 {[%clk 0:00:39.1]} 41. Nc6 {[%clk 0:00:53.8]} 41... Qc4 {[%clk
0:00:37.1]} 42. Rb6 {[%clk 0:00:52]} 42... h5 {[%clk 0:00:32.1]} 43. Qa3 {[%clk
0:00:52.5]} 43... Be4 {[%clk 0:00:28.3]} 44. Ne7+ {[%clk 0:00:50.2]} 44... Kh7
{[%clk 0:00:28.9]} 45. Rb2 {[%clk 0:00:41]} 45... Qc1 {[%clk 0:00:22.7]} 46. f3
{[%clk 0:00:35.3]} 46... Bxf3 {[%clk 0:00:20]} 47. Qd3+ {[%clk 0:00:32.9]} 47...
g6 {[%clk 0:00:17.6]} 48. Rb1 {[%clk 0:00:33.9]} 48... Qg5 {[%clk 0:00:12.4]}
49. Qxf3 {[%clk 0:00:26.5]} 49... Qxe7 {[%clk 0:00:13.7]} 50. Ra1 {[%clk
0:00:28.1]} 50... e5 {[%clk 0:00:10]} 51. Rxa4 {[%clk 0:00:27.3]} 51... exd4
{[%clk 0:00:10.5]} 52. Rxd4 {[%clk 0:00:27.6]} 52... Qe6 {[%clk 0:00:11.2]} 53.
Rd2 {[%clk 0:00:28.8]} 53... Re8 {[%clk 0:00:11.1]} 54. Rf2 {[%clk 0:00:29.8]}
54... Re7 {[%clk 0:00:12]} 55. Qc3 {[%clk 0:00:30.1]} 55... Qd7 {[%clk
0:00:09.8]} 56. Qc2 {[%clk 0:00:31]} 56... Qc7 {[%clk 0:00:10.1]} 57. Qb2 {[%clk
0:00:31.1]} 57... h4 {[%clk 0:00:10.9]} 58. Rf4 {[%clk 0:00:25.4]} 58... hxg3+
{[%clk 0:00:09.4]} 59. Kh3 {[%clk 0:00:26.3]} 59... Qd7+ {[%clk 0:00:07.7]} 60.
Kxg3 {[%clk 0:00:26.1]} 60... Re3+ {[%clk 0:00:08.2]} 61. Rf3 {[%clk 0:00:21.4]}
61... Qd6+ {[%clk 0:00:06.1]} 62. Kg2 {[%clk 0:00:21.4]} 62... Rxf3 {[%clk
0:00:05]} 63. Kxf3 {[%clk 0:00:23.3]} 63... g5 {[%clk 0:00:05.4]} 64. Qb7 {[%clk
0:00:19.6]} 64... Qf6+ {[%clk 0:00:05.4]} 65. Kg4 {[%clk 0:00:20]} 65... Kg6
{[%clk 0:00:07.3]} 66. Qe4+ {[%clk 0:00:19.9]} 66... Kg7 {[%clk 0:00:08.6]} 67.
Qb1 {[%clk 0:00:20]} 67... Qf4+ {[%clk 0:00:08.8]} 68. Kh3 {[%clk 0:00:21.4]}
68... Qh4+ {[%clk 0:00:09.5]} 69. Kg2 {[%clk 0:00:22.5]} 69... Qd4 {[%clk
0:00:11.4]} 70. Qf5 {[%clk 0:00:21.8]} 70... Qd2+ {[%clk 0:00:11]} 71. Kh3
{[%clk 0:00:20.9]} 71... Qf4 {[%clk 0:00:10.4]} 72. Qb1 {[%clk 0:00:20.8]} 72...
g4+ {[%clk 0:00:10.6]} 73. Kh4 {[%clk 0:00:22]} 73... f6 {[%clk 0:00:08.6]} 74.
Qc2 {[%clk 0:00:22.5]} 74... g3+ {[%clk 0:00:08.1]} 75. Kh3 {[%clk 0:00:22.8]}
75... Kh6 {[%clk 0:00:09.4]} 76. Qc8 {[%clk 0:00:22.6]} 76... Kg6 {[%clk
0:00:07.2]} 77. Qg8+ {[%clk 0:00:22.7]} 77... Kf5 {[%clk 0:00:08.6]} 78. Qc8+
{[%clk 0:00:22.9]} 78... Ke4 {[%clk 0:00:09.4]} 79. Qc4+ {[%clk 0:00:23.5]}
79... Ke3 {[%clk 0:00:10.5]} 80. Qc1+ {[%clk 0:00:23.3]} 80... Kf3 {[%clk
0:00:11.5]} 81. Qf1+ {[%clk 0:00:24.7]} 81... Ke4 {[%clk 0:00:12.3]} 82. Qc4+
{[%clk 0:00:26.1]} 82... Kf5 {[%clk 0:00:13.6]} 83. Qc8+ {[%clk 0:00:26.9]}
83... Kg6 {[%clk 0:00:09.6]} 84. Qg8+ {[%clk 0:00:27.8]} 84... Kh6 {[%clk
0:00:09.9]} 85. Qh8+ {[%clk 0:00:28.6]} 85... Kg5 {[%clk 0:00:10.6]} 86. Qg8+
{[%clk 0:00:30.1]} 86... Kh5 {[%clk 0:00:12.1]} 87. Qh8+ {[%clk 0:00:29.8]}
87... Qh6 {[%clk 0:00:12.8]} 88. Qe8+ {[%clk 0:00:29.5]} 88... Qg6 {[%clk
0:00:13.6]} 89. Qh8+ {[%clk 0:00:29.1]} 89... Kg5 {[%clk 0:00:12.9]} 90. Kxg3
{[%clk 0:00:30.3]} 90... Qd3+ {[%clk 0:00:10.1]} 91. Kf2 {[%clk 0:00:30.9]}
91... Qd2+ {[%clk 0:00:10.1]} 92. Kf3 {[%clk 0:00:31.5]} 92... Qc3+ {[%clk
0:00:10.7]} 93. Kf2 {[%clk 0:00:32.4]} 93... Qb2+ {[%clk 0:00:10.4]} 94. Kf3
{[%clk 0:00:33.4]} 94... Qc3+ {[%clk 0:00:11.4]} 95. Kf2 {[%clk 0:00:34.5]}
95... Qd2+ {[%clk 0:00:11.5]} 96. Kf3 {[%clk 0:00:35.3]} 96... Qf4+ {[%clk
0:00:12.5]} 97. Kg2 {[%clk 0:00:35.6]} 97... Kf5 {[%clk 0:00:14.4]} 98. Qc8+
{[%clk 0:00:36.5]} 98... Ke5 {[%clk 0:00:14]} 99. Qc7+ {[%clk 0:00:37.1]} 99...
Ke4 {[%clk 0:00:15.4]} 100. Qc4+ {[%clk 0:00:38]} 100... Ke3 {[%clk 0:00:16]}
101. Qc1+ {[%clk 0:00:38.4]} 101... Ke4 {[%clk 0:00:17.3]} 102. Qc6+ {[%clk
0:00:39.9]} 102... Kd4 {[%clk 0:00:17.2]} 103. Qa4+ {[%clk 0:00:40.4]} 103...
Ke5 {[%clk 0:00:18.5]} 104. Qb5+ {[%clk 0:00:40.8]} 104... Ke6 {[%clk
0:00:18.2]} 105. Qc6+ {[%clk 0:00:41.4]} 105... Kf7 {[%clk 0:00:19]} 106. Qd7+
{[%clk 0:00:41.8]} 106... Kg6 {[%clk 0:00:18.4]} 107. Qe8+ {[%clk 0:00:43.1]}
107... Kh6 {[%clk 0:00:17.6]} 108. Qh8+ {[%clk 0:00:43.5]} 108... Kg5 {[%clk
0:00:17.3]} 109. Qg7+ {[%clk 0:00:43.9]} 109... Kh4 {[%clk 0:00:13.5]} 110. Qh7+
{[%clk 0:00:41.5]} 110... Kg4 {[%clk 0:00:13.5]} 111. Qd7+ {[%clk 0:00:41.1]}
111... f5 {[%clk 0:00:13.5]} 112. Qg7+ {[%clk 0:00:41.9]} 112... Qg5 {[%clk
0:00:13.9]} 113. Qd7 {[%clk 0:00:39.8]} 113... Kf4+ {[%clk 0:00:10.4]} 114. Kf1
{[%clk 0:00:36.9]} 114... Qg3 {[%clk 0:00:09.8]} 115. Qd6+ {[%clk 0:00:36.4]}
115... Kf3 {[%clk 0:00:10.5]} 116. Qd3+ {[%clk 0:00:36.7]} 116... Kg4 {[%clk
0:00:11.4]} 117. Qd4+ {[%clk 0:00:35.5]} 117... Qf4+ {[%clk 0:00:08.3]} 118. Qf2
{[%clk 0:00:31.8]} 118... Qxf2+ {[%clk 0:00:09.1]} 119. Kxf2 {[%clk 0:00:33.2]}
119... Kf4 {[%clk 0:00:10.7]} 120. Kg1 {[%clk 0:00:34.1]} 120... Ke3 {[%clk
0:00:11.5]} 121. Kf1 {[%clk 0:00:31.8]} 121... Kf3 {[%clk 0:00:12.3]} 122. Kg1
{[%clk 0:00:32.8]} 122... Ke2 {[%clk 0:00:12.8]} 123. Kh2 {[%clk 0:00:32.4]}
123... f4 {[%clk 0:00:14.1]} 124. Kg1 {[%clk 0:00:32.6]} 124... f3 {[%clk
0:00:15.5]} 125. Kh1 {[%clk 0:00:33]} 125... f2 {[%clk 0:00:16.8]} 126. Kh2
{[%clk 0:00:33.1]} 126... f1=Q {[%clk 0:00:18.2]} 0-1

[Event "*** Titled Tuesday Blitz"]
[Site "Chess.com"]
[Date "2020.01.07"]
[Round "4"]
[White "Sebastian"]
[Black "Mr_Sinigami"]
[Result "1-0"]
[WhiteElo "2944"]
[BlackElo "2577"]
[TimeControl "180+2"]
[EndTime "13:50:24 PST"]
[Termination "Sebastian won by resignation"]

1. e4 {[%clk 0:03:01.9]} 1... d5 {[%clk 0:02:59.8]} 2. exd5 {[%clk 0:03:02.9]}
2... Nf6 {[%clk 0:03:01.1]} 3. d4 {[%clk 0:03:03.2]} 3... Nxd5 {[%clk 0:03:02]}
4. Nf3 {[%clk 0:03:03.8]} 4... g6 {[%clk 0:03:02.3]} 5. c4 {[%clk 0:03:04.8]}
5... Nb6 {[%clk 0:03:02.6]} 6. Nc3 {[%clk 0:03:05]} 6... Bg7 {[%clk 0:03:03.6]}
7. c5 {[%clk 0:03:06.3]} 7... Nd5 {[%clk 0:03:04]} 8. Bc4 {[%clk 0:03:07.8]}
8... c6 {[%clk 0:03:04.2]} 9. O-O {[%clk 0:03:09]} 9... O-O {[%clk 0:03:04.5]}
10. Re1 {[%clk 0:03:10.4]} 10... e6 {[%clk 0:02:56.9]} 11. Ne4 {[%clk
0:03:05.9]} 11... b6 {[%clk 0:02:56.3]} 12. Bg5 {[%clk 0:03:05]} 12... f6 {[%clk
0:02:51.1]} 13. Bd2 {[%clk 0:02:58.8]} 13... Ba6 {[%clk 0:02:44.5]} 14. Bb3
{[%clk 0:02:59.6]} 14... Nd7 {[%clk 0:02:40.5]} 15. Rc1 {[%clk 0:02:59.1]} 15...
Bd3 {[%clk 0:02:24.4]} 16. Nd6 {[%clk 0:02:55.2]} 16... bxc5 {[%clk 0:02:20.9]}
17. Rxe6 {[%clk 0:02:56]} 17... Kh8 {[%clk 0:01:58.2]} 18. dxc5 {[%clk
0:02:47.4]} 18... Nc7 {[%clk 0:01:42.3]} 19. Re3 {[%clk 0:02:45.6]} 19... Nxc5
{[%clk 0:01:36.6]} 20. Nf7+ {[%clk 0:02:44.4]} 20... Rxf7 {[%clk 0:01:37]} 21.
Bxf7 {[%clk 0:02:46.3]} 21... Ne4 {[%clk 0:01:31.6]} 22. Ba5 {[%clk 0:02:42.9]}
1-0

[Event "*** Titled Tuesday Blitz"]
[Site "Chess.com"]
[Date "2020.01.07"]
[Round "4"]
[White "Keaton87"]
[Black "Marty435"]
[Result "1-0"]
[WhiteElo "2615"]
[BlackElo "2355"]
[TimeControl "180+2"]
[EndTime "13:50:53 PST"]
[Termination "Keaton87 won by checkmate"]

1. d4 {[%clk 0:03:01.9]} 1... Nf6 {[%clk 0:02:56.3]} 2. Bg5 {[%clk 0:03:03.2]}
2... c5 {[%clk 0:02:52.9]} 3. Nc3 {[%clk 0:03:03.4]} 3... cxd4 {[%clk 0:02:34]}
4. Qxd4 {[%clk 0:03:05.3]} 4... Nc6 {[%clk 0:02:30.3]} 5. Qh4 {[%clk 0:03:06.8]}
5... e6 {[%clk 0:02:27.7]} 6. e4 {[%clk 0:03:04]} 6... Be7 {[%clk 0:02:06]} 7.
O-O-O {[%clk 0:03:03.2]} 7... a6 {[%clk 0:01:50.9]} 8. f4 {[%clk 0:03:03.9]}
8... h6 {[%clk 0:01:14.2]} 9. e5 {[%clk 0:03:04.3]} 9... d5 {[%clk 0:00:24.7]}
10. exd6 {[%clk 0:02:45.5]} 10... Bxd6 {[%clk 0:00:16.5]} 11. Ne4 {[%clk
0:02:43.5]} 11... O-O {[%clk 0:00:04.2]} 12. Nxf6+ {[%clk 0:02:29.1]} 12... gxf6
{[%clk 0:00:05.6]} 13. Bxf6 {[%clk 0:02:30.3]} 13... Qc7 {[%clk 0:00:04.8]} 14.
Qg3+ {[%clk 0:02:31.1]} 14... Kh7 {[%clk 0:00:05.7]} 15. Qg7# {[%clk 0:02:33]}
1-0

[Event "*** Titled Tuesday Blitz"]
[Site "Chess.com"]
[Date "2020.01.07"]
[Round "4"]
[White "Valk4"]
[Black "Supernotar"]
[Result "0-1"]
[WhiteElo "2289"]
[BlackElo "2551"]
[TimeControl "180+2"]
[EndTime "13:51:13 PST"]
[Termination "Supernotar won by resignation"]

1. e4 {[%clk 0:03:00.9]} 1... c6 {[%clk 0:03:00.7]} 2. d4 {[%clk 0:03:01.2]}
2... d5 {[%clk 0:03:01.7]} 3. e5 {[%clk 0:03:02.4]} 3... Bf5 {[%clk 0:03:02.4]}
4. Nf3 {[%clk 0:03:02.2]} 4... e6 {[%clk 0:03:03]} 5. Be2 {[%clk 0:03:03.6]}
5... Nd7 {[%clk 0:03:04.1]} 6. O-O {[%clk 0:03:04.2]} 6... a6 {[%clk 0:03:05.5]}
7. Nbd2 {[%clk 0:03:02.8]} 7... c5 {[%clk 0:03:06.6]} 8. c4 {[%clk 0:02:58.1]}
8... Ne7 {[%clk 0:03:07.2]} 9. a4 {[%clk 0:02:51.6]} 9... Rc8 {[%clk 0:03:06.4]}
10. cxd5 {[%clk 0:02:49.4]} 10... Nxd5 {[%clk 0:03:06.9]} 11. Nc4 {[%clk
0:02:30.6]} 11... Qc7 {[%clk 0:03:07.3]} 12. Re1 {[%clk 0:02:21.9]} 12... Be7
{[%clk 0:03:07.5]} 13. Ne3 {[%clk 0:02:14.4]} 13... Nxe3 {[%clk 0:03:06.8]} 14.
Bxe3 {[%clk 0:02:13]} 14... O-O {[%clk 0:03:04.8]} 15. Qb3 {[%clk 0:02:04.7]}
15... c4 {[%clk 0:02:45.4]} 16. Qa2 {[%clk 0:01:55.6]} 16... b5 {[%clk
0:02:44.8]} 17. axb5 {[%clk 0:01:54.3]} 17... axb5 {[%clk 0:02:45.9]} 18. b3
{[%clk 0:01:54.8]} 18... Nb6 {[%clk 0:02:43]} 19. Rac1 {[%clk 0:01:53.3]} 19...
Bb4 {[%clk 0:02:35.9]} 20. Red1 {[%clk 0:01:13.8]} 20... Ra8 {[%clk 0:02:35.7]}
21. Qb2 {[%clk 0:01:12.7]} 21... c3 {[%clk 0:02:32.8]} 0-1

[Event "*** Titled Tuesday Blitz"]
[Site "Chess.com"]
[Date "2020.01.07"]
[Round "4"]
[White "TypeThreeWaffles"]
[Black "LarissaSteenbekkers"]
[Result "1-0"]
[WhiteElo "2477"]
[BlackElo "1709"]
[TimeControl "180+2"]
[EndTime "13:51:24 PST"]
[Termination "TypeThreeWaffles won by resignation"]

1. e4 {[%clk 0:03:01.9]} 1... e6 {[%clk 0:02:57.4]} 2. d4 {[%clk 0:03:02.7]}
2... d5 {[%clk 0:02:53.2]} 3. Nc3 {[%clk 0:03:04.1]} 3... Bb4 {[%clk 0:02:51.4]}
4. e5 {[%clk 0:03:05.2]} 4... Ne7 {[%clk 0:02:50]} 5. a3 {[%clk 0:03:06.3]} 5...
Bxc3+ {[%clk 0:02:47.2]} 6. bxc3 {[%clk 0:03:08.2]} 6... c5 {[%clk 0:02:46.5]}
7. Qg4 {[%clk 0:03:09.2]} 7... Qc7 {[%clk 0:02:44.9]} 8. Qxg7 {[%clk 0:03:08.7]}
8... Rg8 {[%clk 0:02:43.7]} 9. Qxh7 {[%clk 0:03:10.2]} 9... cxd4 {[%clk
0:02:42.4]} 10. Qd3 {[%clk 0:03:11.4]} 10... Qxe5+ {[%clk 0:02:29.2]} 11. Ne2
{[%clk 0:03:12.2]} 11... dxc3 {[%clk 0:02:27.2]} 12. Qxc3 {[%clk 0:03:13.3]}
12... Qxc3+ {[%clk 0:02:26.8]} 13. Nxc3 {[%clk 0:03:15.2]} 13... Nbc6 {[%clk
0:02:25.2]} 14. Bb2 {[%clk 0:03:15]} 14... Bd7 {[%clk 0:02:19.5]} 15. h4 {[%clk
0:03:16.3]} 15... Rc8 {[%clk 0:02:18.4]} 16. h5 {[%clk 0:03:17]} 16... e5 {[%clk
0:02:17.1]} 17. h6 {[%clk 0:03:17.7]} 17... d4 {[%clk 0:02:13.9]} 18. Ne4 {[%clk
0:03:17.4]} 18... Bf5 {[%clk 0:02:12.5]} 19. Nf6+ {[%clk 0:03:11.6]} 19... Kf8
{[%clk 0:02:10.4]} 20. Nxg8 {[%clk 0:03:12.9]} 20... Kxg8 {[%clk 0:02:09.4]} 21.
Bd3 {[%clk 0:03:13.2]} 21... e4 {[%clk 0:02:06.8]} 22. Be2 {[%clk 0:03:10.9]}
22... Kh7 {[%clk 0:02:04.9]} 23. g4 {[%clk 0:03:10.6]} 23... Bg6 {[%clk
0:02:03.5]} 24. f4 {[%clk 0:03:11.5]} 24... exf3 {[%clk 0:02:00.2]} 25. Bxf3
{[%clk 0:03:12.4]} 25... Bxc2 {[%clk 0:01:59.9]} 26. Rc1 {[%clk 0:03:08.8]}
26... d3 {[%clk 0:01:58.6]} 27. Be4+ {[%clk 0:03:01.7]} 27... Ng6 {[%clk
0:01:52.3]} 28. Kd2 {[%clk 0:02:55.9]} 28... Na5 {[%clk 0:01:32.8]} 29. Bd5
{[%clk 0:02:44.6]} 29... Rc7 {[%clk 0:01:17.2]} 30. Rcf1 {[%clk 0:02:41.5]}
30... Kg8 {[%clk 0:00:57.8]} 31. h7+ {[%clk 0:02:39.1]} 1-0

[Event "*** Titled Tuesday Blitz"]
[Site "Chess.com"]
[Date "2020.01.07"]
[Round "4"]
[White "PotapovaM"]
[Black "Playgood28"]
[Result "1-0"]
[WhiteElo "2504"]
[BlackElo "2285"]
[TimeControl "180+2"]
[EndTime "13:51:31 PST"]
[Termination "PotapovaM won by resignation"]

1. d4 {[%clk 0:03:01.9]} 1... f5 {[%clk 0:02:59]} 2. e4 {[%clk 0:03:02.6]} 2...
fxe4 {[%clk 0:02:58.2]} 3. Nc3 {[%clk 0:03:04.1]} 3... Nf6 {[%clk 0:02:59]} 4.
Bg5 {[%clk 0:03:05.2]} 4... Nc6 {[%clk 0:02:59.9]} 5. d5 {[%clk 0:03:05.9]} 5...
Ne5 {[%clk 0:03:01.1]} 6. Qe2 {[%clk 0:03:07.2]} 6... Nf7 {[%clk 0:02:44.8]} 7.
h4 {[%clk 0:03:07.6]} 7... c6 {[%clk 0:02:42.8]} 8. O-O-O {[%clk 0:03:07]} 8...
d6 {[%clk 0:02:19.7]} 9. Bxf6 {[%clk 0:03:00.5]} 9... gxf6 {[%clk 0:02:18.4]}
10. Qxe4 {[%clk 0:02:48.4]} 10... Qb6 {[%clk 0:01:54.8]} 11. Nf3 {[%clk
0:02:39.6]} 11... Qxf2 {[%clk 0:01:41.6]} 12. dxc6 {[%clk 0:02:35.6]} 12... Rb8
{[%clk 0:01:03.1]} 13. Bb5 {[%clk 0:02:30.1]} 13... Kd8 {[%clk 0:00:48.5]} 14.
c7+ {[%clk 0:02:30.8]} 14... Kxc7 {[%clk 0:00:47.8]} 15. Qc4+ {[%clk 0:02:31.4]}
15... Kd8 {[%clk 0:00:41.4]} 16. Qxf7 {[%clk 0:02:31.4]} 16... Bd7 {[%clk
0:00:33.8]} 17. Bxd7 {[%clk 0:02:28.3]} 17... Kxd7 {[%clk 0:00:34.9]} 18. Ne5+
{[%clk 0:02:22.7]} 18... Kd8 {[%clk 0:00:27.8]} 19. Rxd6+ {[%clk 0:02:17]} 1-0

[Event "*** Titled Tuesday Blitz"]
[Site "Chess.com"]
[Date "2020.01.07"]
[Round "4"]
[White "FrogMist"]
[Black "NTBT_DHS"]
[Result "0-1"]
[WhiteElo "2414"]
[BlackElo "2633"]
[TimeControl "180+2"]
[EndTime "13:51:41 PST"]
[Termination "NTBT_DHS won by resignation"]

1. e4 {[%clk 0:03:01.9]} 1... g6 {[%clk 0:03:01.1]} 2. d4 {[%clk 0:03:02.7]}
2... Bg7 {[%clk 0:03:03]} 3. Nf3 {[%clk 0:03:02]} 3... d6 {[%clk 0:03:04.4]} 4.
Be3 {[%clk 0:03:02.4]} 4... Nf6 {[%clk 0:03:05.3]} 5. Nc3 {[%clk 0:03:02.7]}
5... a6 {[%clk 0:03:06.1]} 6. Qd2 {[%clk 0:02:52]} 6... Bg4 {[%clk 0:03:06.2]}
7. Bh6 {[%clk 0:02:51.2]} 7... Bxh6 {[%clk 0:03:06.5]} 8. Qxh6 {[%clk
0:02:53.1]} 8... Bxf3 {[%clk 0:03:07.6]} 9. gxf3 {[%clk 0:02:54.7]} 9... c6
{[%clk 0:03:04.6]} 10. O-O-O {[%clk 0:02:47.5]} 10... Qa5 {[%clk 0:03:02.7]} 11.
Bc4 {[%clk 0:02:27.5]} 11... Nbd7 {[%clk 0:02:57.6]} 12. a3 {[%clk 0:01:55.7]}
12... b5 {[%clk 0:02:51.8]} 13. Qg7 {[%clk 0:01:49.4]} 13... O-O-O {[%clk
0:02:32.4]} 14. Bxf7 {[%clk 0:01:46.1]} 14... b4 {[%clk 0:02:33.3]} 15. axb4
{[%clk 0:01:45.5]} 15... Qg5+ {[%clk 0:02:34.2]} 16. Kb1 {[%clk 0:01:45.3]}
16... Nh5 {[%clk 0:02:35.1]} 17. h4 {[%clk 0:01:18.4]} 17... Qf4 {[%clk
0:02:33.1]} 18. Ne2 {[%clk 0:01:08]} 18... Qxf3 {[%clk 0:02:31.1]} 19. Qh6
{[%clk 0:01:06.5]} 19... Qxf7 {[%clk 0:02:31]} 20. d5 {[%clk 0:01:03.2]} 20...
c5 {[%clk 0:02:25.7]} 21. bxc5 {[%clk 0:01:02.2]} 21... Nxc5 {[%clk 0:02:27.6]}
22. Nd4 {[%clk 0:01:01.3]} 22... Qf4 {[%clk 0:02:25.6]} 23. Qxf4 {[%clk
0:00:57.3]} 23... Nxf4 {[%clk 0:02:26.1]} 24. Nc6 {[%clk 0:00:57.5]} 24... Rd7
{[%clk 0:02:26.5]} 25. b4 {[%clk 0:00:58.8]} 25... Na4 {[%clk 0:02:26.1]} 26.
Rd4 {[%clk 0:00:53.2]} 26... Rc7 {[%clk 0:02:22.2]} 27. Ka2 {[%clk 0:00:52.6]}
27... e5 {[%clk 0:02:22.6]} 28. Rd2 {[%clk 0:00:51.5]} 28... Nc3+ {[%clk
0:02:22.5]} 29. Kb3 {[%clk 0:00:51.7]} 29... Nxe4 {[%clk 0:02:24.4]} 30. Rdd1
{[%clk 0:00:45.9]} 30... Nxf2 {[%clk 0:02:24.4]} 31. Ra1 {[%clk 0:00:47.5]}
31... Nxh1 {[%clk 0:02:25.2]} 32. Rxh1 {[%clk 0:00:48]} 32... Nxd5 {[%clk
0:02:26.1]} 0-1

[Event "*** Titled Tuesday Blitz"]
[Site "Chess.com"]
[Date "2020.01.07"]
[Round "4"]
[White "PNEPaul"]
[Black "Chessalary"]
[Result "0-1"]
[WhiteElo "1812"]
[BlackElo "2083"]
[TimeControl "180+2"]
[EndTime "13:51:42 PST"]
[Termination "Chessalary won by resignation"]

1. e4 {[%clk 0:03:01.9]} 1... c5 {[%clk 0:03:00.1]} 2. Nf3 {[%clk 0:03:02.6]}
2... d6 {[%clk 0:03:00.9]} 3. d4 {[%clk 0:03:03.3]} 3... cxd4 {[%clk 0:03:02.8]}
4. c3 {[%clk 0:03:04.3]} 4... d3 {[%clk 0:03:01.2]} 5. Bxd3 {[%clk 0:03:04.4]}
5... Nc6 {[%clk 0:03:02.8]} 6. Bf4 {[%clk 0:03:04.7]} 6... Nf6 {[%clk
0:03:01.9]} 7. Qe2 {[%clk 0:03:04.8]} 7... Bg4 {[%clk 0:03:01.1]} 8. h3 {[%clk
0:03:04.9]} 8... Bh5 {[%clk 0:03:01.5]} 9. g4 {[%clk 0:03:05.3]} 9... Bg6 {[%clk
0:03:02.7]} 10. Na3 {[%clk 0:03:01.3]} 10... a6 {[%clk 0:02:57.5]} 11. O-O-O
{[%clk 0:03:01.2]} 11... e6 {[%clk 0:02:47.9]} 12. e5 {[%clk 0:02:58.5]} 12...
Bxd3 {[%clk 0:02:46.3]} 13. Rxd3 {[%clk 0:02:58.7]} 13... Nd5 {[%clk 0:02:43.5]}
14. Rxd5 {[%clk 0:02:56.1]} 14... exd5 {[%clk 0:02:44.4]} 15. exd6+ {[%clk
0:02:57.1]} 15... Kd7 {[%clk 0:02:45.8]} 16. Nc4 {[%clk 0:02:53.1]} 16... dxc4
{[%clk 0:02:44.5]} 17. Ne5+ {[%clk 0:02:50.9]} 17... Nxe5 {[%clk 0:02:41.9]} 18.
Qxe5 {[%clk 0:02:51.6]} 18... Qf6 {[%clk 0:02:41.1]} 19. Qe4 {[%clk 0:02:46.1]}
19... Rb8 {[%clk 0:02:15.9]} 20. Qxc4 {[%clk 0:02:42.4]} 20... Rc8 {[%clk
0:02:10.2]} 21. Qe4 {[%clk 0:02:39.5]} 21... Rc6 {[%clk 0:02:09.8]} 22. Re1
{[%clk 0:02:28.3]} 22... Qe6 {[%clk 0:01:57]} 23. Be5 {[%clk 0:02:16]} 23...
Bxd6 {[%clk 0:01:54.5]} 24. Qd4 {[%clk 0:02:10.1]} 24... Kc7 {[%clk 0:01:40.9]}
25. f4 {[%clk 0:02:04.6]} 25... Bxe5 {[%clk 0:01:41]} 26. Rxe5 {[%clk
0:02:03.2]} 26... Rd8 {[%clk 0:01:30.1]} 27. Qe4 {[%clk 0:01:56.9]} 27... Qxa2
{[%clk 0:01:25.9]} 28. Re7+ {[%clk 0:01:53.6]} 28... Kb8 {[%clk 0:01:27]} 29.
Qe5+ {[%clk 0:01:54]} 29... Ka8 {[%clk 0:01:28]} 0-1

[Event "*** Titled Tuesday Blitz"]
[Site "Chess.com"]
[Date "2020.01.07"]
[Round "4"]
[White "TwentyHourADay"]
[Black "ural58"]
[Result "1-0"]
[WhiteElo "2218"]
[BlackElo "2344"]
[TimeControl "180+2"]
[EndTime "13:52:15 PST"]
[Termination "TwentyHourADay won by resignation"]

1. Nf3 {[%clk 0:03:01.9]} 1... d5 {[%clk 0:03:00]} 2. e3 {[%clk 0:03:00]} 2...
Nc6 {[%clk 0:02:58]} 3. c4 {[%clk 0:02:55.9]} 3... dxc4 {[%clk 0:02:54.4]} 4.
Bxc4 {[%clk 0:02:56.2]} 4... e5 {[%clk 0:02:55.7]} 5. Nc3 {[%clk 0:02:55.2]}
5... Bd6 {[%clk 0:02:53.6]} 6. h3 {[%clk 0:02:55.9]} 6... Nf6 {[%clk 0:02:48.9]}
7. d4 {[%clk 0:02:55.2]} 7... exd4 {[%clk 0:02:48.3]} 8. exd4 {[%clk 0:02:55.8]}
8... O-O {[%clk 0:02:45.6]} 9. O-O {[%clk 0:02:56.4]} 9... Bf5 {[%clk
0:02:43.5]} 10. Bg5 {[%clk 0:02:54]} 10... h6 {[%clk 0:02:44.5]} 11. Bh4 {[%clk
0:02:54.6]} 11... g5 {[%clk 0:02:45.6]} 12. Nxg5 {[%clk 0:02:38.9]} 12... hxg5
{[%clk 0:02:43]} 13. Bxg5 {[%clk 0:02:39.9]} 13... Be7 {[%clk 0:02:31.6]} 14.
Re1 {[%clk 0:02:37.5]} 14... Nh7 {[%clk 0:00:56.5]} 15. Bh6 {[%clk 0:02:16.1]}
15... Re8 {[%clk 0:00:53.7]} 16. Qh5 {[%clk 0:02:13.1]} 16... Qxd4 {[%clk
0:00:15.6]} 17. Bxf7+ {[%clk 0:01:48.6]} 17... Kh8 {[%clk 0:00:16.4]} 18. Bxe8
{[%clk 0:01:36.8]} 18... Qf6 {[%clk 0:00:10.6]} 19. Bxc6 {[%clk 0:01:34.9]}
19... bxc6 {[%clk 0:00:10.8]} 20. Rxe7 {[%clk 0:01:34.1]} 20... Qxe7 {[%clk
0:00:11.1]} 21. Qxf5 {[%clk 0:01:35.1]} 1-0